bitfinex-derivatives/quotes_ETHF0:USTF0_20260213
["timestamp","ask_amount","ask_price","bid_price","bid_amount"]
[1771003122520,2.15544858,2054.7,2053.8,0.24363]
[1771003123117,2.15544858,2054.7,2053.7,0.3010688]
[1771003123317,2.15544858,2054.7,2053.4,0.29509494]
[1771003124020,2.15544858,2054.5,2053.4,0.29509494]
[1771003124921,2.15544858,2054.5,2053.6,0.33241003]
[1771003125620,2.15544858,2054.5,2053.3,0.32636504]
[1771003126016,2.15544858,2054.5,2053.6,0.30855506]
[1771003126529,2.15544858,2054.5,2053.7,0.54581971]
[1771003127222,2.15544858,2054.5,2053.6,0.29617151]
[1771003128023,2.15544858,2054.5,2053.8,0.29617151]
[1771003128635,2.15544858,2054.5,2053.9,0.24362]
[1771003128820,40.8,2054.6,2054.2,0.81145187]
[1771003129522,42.95544858,2054.6,2054.2,0.81145187]
[1771003129818,2.15544858,2054.6,2054.1,1.04939476]
[1771003130021,2.15544858,2054.8,2054.2,0.79675523]
[1771003130215,2.15544858,2055.0,2054.4,0.79675523]
[1771003130417,40.8,2054.9,2054.6,0.81242331]
[1771003130617,42.95544858,2054.9,2054.5,1.05597331]
[1771003131022,42.95544858,2054.9,2054.5,0.24355]
[1771003131223,0.00407342,2055.1,2054.5,1.0489566]
[1771003131419,0.00407342,2055.1,2054.6,0.8054066]
[1771003131623,2.159522,2055.1,2054.6,0.8054066]
[1771003131815,0.00407342,2055.1,2054.6,0.8054066]
[1771003132128,2.159522,2055.1,2054.6,0.8054066]
[1771003132424,2.15544858,2056.0,2054.8,0.83408342]
[1771003132627,2.15544858,2056.0,2055.0,0.83408342]
[1771003132824,40.8,2055.9,2055.0,0.83408342]
[1771003133126,2.15544858,2055.8,2055.0,0.83408342]
[1771003133525,2.1591822,2055.8,2055.0,0.83815684]
[1771003133925,2.1591822,2055.8,2055.0,0.00407342]
[1771003134229,2.1591822,2055.8,2055.0,0.84836684]
[1771003134526,2.1591822,2055.8,2055.2,0.83834937]
[1771003134925,2.1591822,2055.8,2055.0,0.00407342]
[1771003135232,2.1591822,2055.8,2055.0,0.83659005]
[1771003135425,2.1591822,2055.8,2055.2,1.07597663]
[1771003135624,0.00373362,2055.8,2055.3,0.83251663]
[1771003136123,5.41913365,2056.9,2055.3,0.83251663]
[1771003136320,2.15544858,2056.8,2055.5,0.83125968]
[1771003136525,2.15544858,2056.7,2055.5,0.83125968]
[1771003137330,2.16013356,2056.7,2055.5,0.83125968]
[1771003137626,2.15544858,2056.5,2055.6,0.24342]
[1771003137833,2.15544858,2056.5,2055.3,7.09184932]
[1771003138022,2.15544858,2056.5,2055.3,0.82541865]
[1771003138422,2.15544858,2056.5,2055.5,0.82130786]
[1771003139133,2.15544858,2056.5,2055.7,0.82158678]
[1771003139433,2.15544858,2056.5,2055.8,1.05883912]
[1771003139627,2.15544858,2056.5,2055.9,0.81544912]
[1771003140027,2.15544858,2056.5,2055.4,0.82641783]
[1771003140525,2.15544858,2056.5,2055.2,4.50546]
[1771003140832,2.15544858,2056.4,2055.3,0.81568916]
[1771003141237,4.71672052,2056.4,2055.2,4.262]
[1771003141526,2.10521593,2056.3,2055.0,0.00407342]
[1771003141931,2.10521593,2056.0,2055.0,0.00407342]
[1771003142132,2.10521593,2056.0,2055.0,0.82428621]
[1771003142931,2.10521593,2056.0,2055.2,0.81429078]
[1771003143234,2.10521593,2055.9,2055.2,0.81429078]
[1771003144226,2.10521593,2056.6,2055.4,0.86772709]
[1771003144627,2.10521593,2056.3,2055.4,0.86772709]
[1771003145337,2.10521593,2056.3,2055.5,1.11133344]
[1771003146639,40.8,2056.4,2055.8,0.85565446]
[1771003146839,2.10521593,2056.5,2055.8,0.85565446]
[1771003147039,2.10521593,2056.5,2055.4,0.85583094]
[1771003147238,2.10521593,2056.5,2055.5,1.09306077]
[1771003147441,40.8,2056.4,2055.8,0.84963077]
[1771003147640,40.8,2056.4,2055.3,8.55025194]
[1771003147641,2.10521593,2056.5,2056.0,0.84963077]
[1771003147936,2.10521593,2056.5,2055.9,0.24338]
[1771003147937,2.10990091,2056.7,2056.1,1.59610549]
[1771003148242,2.10521593,2057.6,2056.1,1.59610549]
[1771003149041,2.11052179,2057.6,2056.1,1.59610549]
[1771003149539,2.10521593,2057.5,2056.1,1.59610549]
[1771003149741,2.10521593,2057.5,2056.1,0.24336]
[1771003150037,2.10521593,2057.5,2055.9,1.98624943]
[1771003150231,2.10521593,2057.5,2056.1,1.98624943]
[1771003151237,2.10521593,2057.5,2056.2,2.22958943]
[1771003151941,2.10521593,2057.5,2056.7,1.98624943]
[1771003152132,2.10521593,2057.5,2056.7,1.99101419]
[1771003153743,40.8,2057.4,2056.7,1.99101419]
[1771003153931,2.10521593,2057.3,2056.7,0.00476476]
[1771003155043,2.10521593,2057.3,2056.1,6.47559943]
[1771003155938,2.10521593,2057.3,2056.2,1.98624943]
[1771003156136,2.10521593,2057.3,2056.1,4.49387047]
[1771003156541,2.10521593,2057.2,2056.1,4.25052047]
[1771003156745,2.10521593,2057.2,2056.2,1.98624943]
[1771003158236,2.10521593,2057.2,2056.1,4.25052047]
[1771003158431,2.10521593,2057.2,2056.1,6.2367699]
[1771003158638,2.10521593,2057.2,2056.4,1.98624943]
[1771003159136,42.90521593,2057.1,2056.4,1.98624943]
[1771003160944,2.11052179,2057.6,2056.6,1.98624943]
[1771003161239,2.11052179,2057.6,2056.5,1.98624943]
[1771003161442,2.10521593,2057.4,2056.5,1.98624943]
[1771003162741,2.10521593,2057.4,2056.7,1.98624943]
[1771003164349,0.00530586,2057.6,2057.1,1.98624943]
[1771003164546,2.11052179,2057.6,2057.0,0.24325]
[1771003164746,2.10521593,2057.4,2056.8,1.98624943]
[1771003165143,2.10521593,2057.4,2056.6,6.21924943]
[1771003165340,2.10521593,2057.4,2056.6,4.233]
[1771003165539,2.10521593,2057.4,2056.5,0.2433]
[1771003166953,2.10521593,2057.4,2056.5,2.22954943]
[1771003167452,2.10521593,2057.4,2056.2,1.98624943]
[1771003169645,2.10521593,2057.4,2056.1,6.2237699]
[1771003169844,2.10521593,2057.3,2056.1,6.2237699]
[1771003170350,2.10521593,2057.1,2056.1,4.23752047]
[1771003170852,2.10521593,2057.1,2056.1,0.00452047]
[1771003171046,2.10521593,2057.1,2056.1,1.94185395]
[1771003172350,2.10521593,2057.1,2056.3,1.93733348]
[1771003174950,2.10521593,2057.1,2056.1,1.94185395]
[1771003175151,4.66648787,2057.1,2056.1,0.00452047]
[1771003175354,2.02551143,2057.0,2056.1,0.00452047]
[1771003176357,2.02551143,2057.0,2055.7,9.2725728]
[1771003176552,2.56127194,2056.8,2055.7,9.2725728]
[1771003176758,2.02551143,2056.7,2055.7,0.24339]
[1771003176946,19.58427194,2056.8,2055.3,21.07410442]
[1771003176947,1.92340518,2056.5,2055.3,1.98539272]
[1771003177346,1.92340518,2056.3,2055.4,2.22883272]
[1771003178255,1.92340518,2056.3,2055.3,0.00320679]
[1771003179457,1.92340518,2056.1,2055.3,0.00320679]
[1771003179658,1.92730308,2056.1,2055.3,0.00320679]
[1771003182862,1.92340518,2055.9,2055.3,0.00320679]
[1771003184562,0.0038979,2056.1,2055.3,0.00320679]
[1771003184563,0.0038979,2056.1,2055.3,2.23204951]
[1771003184764,1.92340518,2056.4,2055.3,2.23204951]
[1771003184765,1.92340518,2056.4,2055.8,1.98539272]
[1771003185266,40.8,2056.3,2055.8,1.98539272]
[1771003185461,1.92340518,2057.0,2055.9,0.24338]
[1771003185658,1.92340518,2057.0,2056.0,1.98539272]
[1771003185862,1.9283298,2057.0,2056.0,1.98539272]
[1771003186069,1.92340518,2056.8,2055.7,1.98539272]
[1771003186672,1.92340518,2056.7,2055.4,0.24343]
[1771003186969,1.92340518,2056.4,2055.3,2.23204951]
[1771003187369,1.92340518,2056.6,2055.8,1.98539272]
[1771003187667,1.92340518,2056.8,2056.0,1.98539272]
[1771003188571,1.92340518,2056.8,2056.1,0.24336]
[1771003188766,1.92340518,2056.8,2056.2,1.98539272]
[1771003189264,40.8,2056.9,2056.2,1.98539272]
[1771003190172,40.8,2056.9,2056.4,1.98539272]
[1771003190973,0.00492462,2057.0,2056.4,1.98539272]
[1771003191369,42.7283298,2057.0,2056.4,1.98539272]
[1771003194568,1.92340518,2056.9,2056.4,1.98539272]
[1771003195968,1.92340518,2056.9,2056.0,1.98539272]
[1771003196169,1.92340518,2056.9,2056.1,4.243]
[1771003196372,1.92340518,2056.9,2056.1,6.22839272]
[1771003197670,40.80492462,2057.0,2056.2,2.22873272]
[1771003198477,42.7283298,2057.0,2056.2,2.22873272]
[1771003198679,1.92340518,2056.9,2056.2,2.22873272]
[1771003199874,40.80492462,2057.0,2056.2,2.22873272]
[1771003200076,1.92340518,2058.1,2056.7,1.98539272]
[1771003200276,1.92340518,2057.9,2057.0,1.98539272]
[1771003200482,1.92340518,2057.7,2057.0,1.98539272]
[1771003200679,1.92340518,2057.7,2056.9,0.24326]
[1771003200876,1.92340518,2057.7,2056.7,6.07178948]
[1771003201180,1.92765078,2057.7,2056.7,4.26273294]
[1771003201380,1.92765078,2057.7,2056.7,0.00573294]
[1771003201683,1.92765078,2057.7,2056.5,1.81478948]
[1771003202081,1.92765078,2057.7,2056.7,1.81478948]
[1771003202582,1.92765078,2057.7,2056.7,0.00479479]
[1771003202778,1.83321473,2057.5,2055.9,8.9066388]
[1771003202975,1.83321473,2057.5,2056.0,2.05815948]
[1771003203175,1.83321473,2057.3,2056.0,0.24337]
[1771003203373,1.83321473,2057.3,2056.0,1.81478948]
[1771003203777,1.83321473,2057.3,2056.2,1.81478948]
[1771003203973,1.83321473,2057.2,2056.2,1.81478948]
[1771003204881,1.83321473,2057.5,2056.6,1.81478948]
[1771003205181,1.83321473,2057.6,2056.7,2.05807948]
[1771003205377,0.0042456,2057.7,2056.7,2.05807948]
[1771003205583,0.0042456,2057.7,2057.2,1.81478948]
[1771003206375,1.83746033,2057.7,2057.1,4.49923]
[1771003206575,42.63746033,2057.7,2057.1,2.05801948]
[1771003206781,40.8042456,2057.7,2057.1,2.05801948]
[1771003206982,42.63746033,2057.7,2057.1,2.05801948]
[1771003207583,40.8042456,2057.7,2057.1,2.05801948]
[1771003207884,1.83321473,2058.3,2057.3,0.24321]
[1771003208187,1.83321473,2058.3,2057.6,1.81478948]
[1771003208584,1.83321473,2058.5,2057.7,1.81478948]
[1771003208783,40.8,2058.4,2057.7,1.81916672]
[1771003208988,42.63321473,2058.4,2057.7,1.81916672]
[1771003209988,1.83321473,2058.3,2057.7,0.00437724]
[1771003210385,42.63321473,2058.4,2057.7,1.81916672]
[1771003210985,40.8,2058.4,2057.7,1.81916672]
[1771003211185,1.83679904,2058.5,2057.7,1.81916672]
[1771003211587,1.83321473,2058.3,2057.7,1.81916672]
[1771003211789,1.83321473,2058.3,2057.7,0.00437724]
[1771003212391,1.83321473,2058.3,2057.7,1.81916672]
[1771003213186,0.00358431,2058.5,2057.9,1.81478948]
[1771003213789,1.83679904,2058.5,2057.9,1.81478948]
[1771003213993,1.83679904,2058.5,2057.7,0.00437724]
[1771003214790,1.83679904,2058.5,2057.3,0.24321]
[1771003214791,1.83679904,2058.5,2057.3,1.81478948]
[1771003215086,1.83679904,2058.5,2057.2,1.81478948]
[1771003215289,1.83679904,2058.5,2057.2,2.05800948]
[1771003215988,1.83679904,2058.5,2057.2,2.05937942]
[1771003217096,1.83679904,2058.5,2057.7,1.81478948]
[1771003217301,1.83679904,2058.5,2057.7,6.08078948]
[1771003217496,1.83679904,2058.5,2057.8,1.81478948]
[1771003218096,0.00358431,2058.5,2058.0,1.81478948]
[1771003218292,0.00358431,2058.5,2057.9,0.24314]
[1771003218293,1.83679904,2058.5,2057.9,0.24314]
[1771003218497,1.83679904,2058.5,2057.9,2.05792948]
[1771003219096,1.83679904,2058.5,2057.9,0.24314]
[1771003219700,1.83679904,2058.5,2057.9,2.05792948]
[1771003220196,1.83679904,2058.5,2057.9,0.24314]
[1771003220602,1.83679904,2058.5,2057.8,4.268]
[1771003221198,1.83679904,2058.5,2057.5,1.81478948]
[1771003221503,1.83679904,2058.5,2057.5,6.08678948]
[1771003222903,1.83679904,2058.5,2057.5,4.272]
[1771003224205,1.83679904,2058.5,2057.6,2.05796948]
[1771003224600,1.83679904,2058.5,2057.5,4.272]
[1771003224998,1.83679904,2058.5,2057.2,1.81615942]
[1771003225704,1.83679904,2058.5,2057.4,1.81478948]
[1771003226496,1.83679904,2058.5,2057.3,0.24321]
[1771003226800,1.83679904,2058.5,2057.3,2.05799948]
[1771003228601,1.83679904,2058.5,2057.4,1.81478948]
[1771003228800,1.83679904,2058.5,2057.6,1.81478948]
[1771003229197,1.83679904,2058.5,2057.8,1.81478948]
[1771003229809,1.83679904,2058.5,2058.0,1.81478948]
[1771003230601,1.83679904,2058.5,2057.8,1.81478948]
[1771003231109,1.83679904,2058.5,2057.7,4.274]
[1771003231297,1.83679904,2058.5,2057.7,6.11398317]
[1771003231911,1.83679904,2058.5,2057.8,1.83998317]
[1771003232102,1.83679904,2058.5,2057.7,4.274]
[1771003232507,1.83679904,2058.5,2057.6,1.83998317]
[1771003233009,1.83679904,2058.5,2057.8,1.83998317]
[1771003233209,1.83679904,2058.5,2057.9,2.08312317]
[1771003233408,0.00358431,2058.5,2057.9,2.08312317]
[1771003234310,0.00358431,2058.5,2058.2,1.83998317]
[1771003234606,1.76033101,2058.9,2058.2,1.83998317]
[1771003235212,42.56033101,2058.8,2058.2,1.83998317]
[1771003235608,42.56502849,2058.8,2058.2,1.83998317]
[1771003235815,1.76033101,2058.7,2058.1,4.52812]
[1771003236309,1.76033101,2058.7,2058.1,6.36810317]
[1771003236508,1.76033101,2058.7,2058.2,1.83998317]
[1771003237303,40.80469748,2058.8,2058.2,1.83998317]
[1771003237706,42.61268761,2058.8,2058.2,1.83998317]
[1771003237907,1.80799013,2058.7,2058.1,4.52812]
[1771003239208,1.80799013,2058.7,2057.8,7.09184932]
[1771003239409,1.80799013,2058.6,2057.6,1.76284246]
[1771003239809,1.80799013,2058.6,2057.7,1.76284246]
[1771003241413,1.80799013,2058.6,2057.9,1.76284246]
[1771003241615,42.61268761,2058.8,2058.0,1.76284246]
[1771003241818,1.80799013,2058.7,2058.0,1.76284246]
[1771003242110,40.80469748,2058.8,2058.4,1.76284246]
[1771003242414,1.81268761,2058.8,2058.3,4.314]
[1771003242606,1.81268761,2058.8,2058.0,13.17069178]
[1771003242811,1.80799013,2058.6,2058.0,6.07884246]
[1771003243010,1.80799013,2058.6,2058.0,4.316]
[1771003243412,1.80799013,2058.6,2058.0,6.07884246]
[1771003243616,1.80799013,2058.6,2057.8,9.09783178]
[1771003243816,1.80799013,2058.6,2057.8,13.41983178]
[1771003244315,1.80799013,2058.6,2057.8,13.17669178]
[1771003244516,1.80799013,2058.6,2057.6,8.85469178]
[1771003244717,1.80799013,2058.6,2057.6,13.18369178]
[1771003245411,1.80799013,2058.6,2057.6,11.42084932]
[1771003245613,1.80799013,2058.6,2057.4,7.09184932]
[1771003245917,1.80799013,2058.4,2057.4,2.00604246]
[1771003246217,1.80799013,2058.4,2057.6,2.00602246]
[1771003247617,1.80799013,2058.4,2057.6,0.24318]
[1771003248315,1.80799013,2058.2,2057.6,0.24318]
[1771003248612,42.60799013,2058.3,2057.6,2.00602246]
[1771003248813,42.60799013,2058.3,2057.7,1.76284246]
[1771003249017,40.8,2058.3,2057.9,1.76284246]
[1771003249218,40.8,2058.3,2058.0,1.76284246]
[1771003249613,42.60799013,2058.3,2057.9,6.10584246]
[1771003249815,1.80799013,2058.2,2057.9,4.343]
[1771003250014,40.8,2058.3,2057.9,6.10584246]
[1771003250217,40.8,2058.3,2058.0,1.76284246]
[1771003250818,1.80799013,2058.5,2058.0,1.76284246]
[1771003251219,1.80799013,2058.4,2057.9,4.343]
[1771003251614,1.80799013,2058.4,2057.7,11.69100932]
[1771003251816,1.80799013,2058.4,2057.8,1.76284246]
[1771003252210,1.80799013,2058.4,2058.0,1.76284246]
[1771003252720,1.80799013,2058.4,2057.9,0.24314]
[1771003252922,1.80799013,2058.4,2057.7,4.356]
[1771003253121,1.80799013,2058.4,2057.7,6.11884246]
[1771003253423,40.8,2058.5,2057.8,2.00600246]
[1771003253632,40.8,2058.5,2057.9,1.76284246]
[1771003253924,1.81268761,2058.8,2058.2,2.00595246]
[1771003254431,0.00469748,2058.8,2058.2,2.00595246]
[1771003255526,0.00469748,2058.8,2058.5,1.76284246]
[1771003255730,0.00469748,2058.8,2058.4,0.24308]
[1771003255731,1.81268761,2058.8,2058.4,2.00592246]
[1771003256033,0.00469748,2058.8,2058.4,2.00592246]
[1771003256234,40.8,2059.1,2058.6,1.76284246]
[1771003256426,1.80799013,2059.2,2058.8,1.76284246]
[1771003256933,1.80799013,2059.7,2058.8,1.76284246]
[1771003257329,1.81201276,2059.7,2058.8,1.76773876]
[1771003258128,1.81201276,2059.7,2059.0,1.76284246]
[1771003258433,1.81201276,2059.7,2059.2,1.76284246]
[1771003259829,1.81201276,2059.7,2059.1,4.385]
[1771003260224,1.81201276,2059.7,2058.8,0.0048963]
[1771003260429,1.81201276,2059.7,2058.5,1.76284246]
[1771003260633,1.81201276,2059.7,2058.4,4.389]
[1771003260838,1.81201276,2059.7,2058.5,1.70994403]
[1771003261024,1.81201276,2059.7,2058.7,1.70994403]
[1771003261630,1.81201276,2059.7,2058.8,1.95298403]
[1771003261933,1.81201276,2059.7,2059.0,1.95295403]
[1771003262438,40.8,2059.6,2059.0,1.95295403]
[1771003263134,1.81201276,2059.7,2059.0,1.95295403]
[1771003263437,0.00402263,2059.7,2059.0,1.95295403]
[1771003263641,1.73741721,2059.6,2059.0,1.95295403]
[1771003264126,1.74143984,2059.7,2059.0,1.95295403]
[1771003264736,40.8,2059.6,2059.2,1.70994403]
[1771003265441,42.53741721,2059.6,2059.2,1.70994403]
[1771003265639,40.8,2059.6,2059.2,1.70994403]
[1771003266140,0.00402263,2059.7,2059.3,1.95292403]
[1771003267243,40.80402263,2059.7,2059.3,1.95292403]
[1771003267446,1.74143984,2059.7,2059.1,4.398]
[1771003267838,1.73741721,2059.5,2059.1,6.10794403]
[1771003269142,1.73741721,2059.5,2059.1,4.398]
[1771003269336,1.73741721,2059.5,2058.8,0.24304]
[1771003269741,1.73741721,2059.5,2058.8,1.95298403]
[1771003270342,1.73741721,2059.5,2058.7,0.00405759]
[1771003270642,1.73741721,2059.5,2058.3,0.24309]
[1771003270841,1.73741721,2059.5,2058.3,4.65309]
[1771003271045,1.73741721,2059.3,2058.3,4.65309]
[1771003272544,1.73741721,2059.3,2058.4,1.70994403]
[1771003273444,1.73741721,2059.1,2058.3,4.65309]
[1771003273645,1.73741721,2059.1,2058.3,0.24309]
[1771003274846,1.73741721,2059.1,2058.3,1.95303403]
[1771003275445,1.73741721,2059.1,2058.3,0.24309]
[1771003277246,1.73741721,2059.1,2058.3,1.95303403]
[1771003278951,1.73741721,2059.3,2058.7,1.95299403]
[1771003279249,1.74143984,2059.7,2059.0,1.70994403]
[1771003279549,0.00402263,2059.7,2059.2,1.70994403]
[1771003280049,1.74143984,2059.7,2059.1,0.243]
[1771003280250,1.74143984,2059.7,2059.1,1.95294403]
[1771003280850,1.74143984,2059.7,2058.8,8.93381471]
[1771003281045,1.74143984,2059.7,2058.8,13.34981471]
[1771003281359,1.74143984,2059.7,2058.6,7.46692068]
[1771003281649,1.74143984,2059.7,2058.6,0.24305]
[1771003282044,1.74143984,2059.7,2058.6,1.95299403]
[1771003282448,1.74143984,2059.7,2058.7,1.70994403]
[1771003282853,1.74143984,2059.7,2058.5,8.93381471]
[1771003283044,1.74143984,2059.7,2058.5,1.70994403]
[1771003283245,1.74143984,2059.7,2058.5,8.93381471]
[1771003285053,1.74143984,2059.7,2058.6,1.70994403]
[1771003286655,1.74143984,2059.7,2058.5,7.46694068]
[1771003286854,1.74143984,2059.7,2058.6,1.70994403]
[1771003288055,1.74143984,2059.7,2058.7,0.24305]
[1771003288250,1.74143984,2059.7,2058.7,1.95299403]
[1771003288451,1.74143984,2059.7,2058.7,0.24305]
[1771003288755,1.74143984,2059.7,2058.5,1.70994403]
[1771003289055,1.73741721,2059.4,2058.4,4.418]
[1771003289450,1.73741721,2059.4,2058.5,1.70994403]
[1771003289651,1.73741721,2059.4,2058.7,1.70994403]
[1771003289850,1.73741721,2059.4,2058.8,1.95298403]
[1771003290553,1.73741721,2059.6,2058.8,1.95298403]
[1771003290750,0.00402263,2059.7,2059.0,1.70994403]
[1771003290950,1.73772914,2059.7,2059.0,1.70994403]
[1771003291559,0.00402263,2059.7,2059.2,1.73437417]
[1771003292752,40.8,2059.8,2059.3,1.73437417]
[1771003293053,40.8,2059.8,2059.1,7.46687068]
[1771003293054,40.8,2059.8,2059.5,1.73437417]
[1771003293253,1.73370651,2060.4,2059.5,1.97732417]
[1771003293455,1.73370651,2060.4,2059.5,9.20119485]
[1771003293656,1.73896189,2060.4,2059.6,0.34103159]
[1771003294061,1.73896189,2060.4,2059.8,0.38819507]
[1771003294258,0.00525538,2060.4,2060.0,0.3823316]
[1771003294765,1.73370651,2060.9,2060.1,0.24288]
[1771003294949,1.73370651,2060.9,2060.2,0.38232622]
[1771003295149,1.73370651,2060.9,2060.1,0.24288]
[1771003295352,1.73370651,2060.9,2060.3,1.73437417]
[1771003295759,0.00555634,2060.9,2060.3,1.73437417]
[1771003296452,1.73926285,2060.9,2060.1,1.97725417]
[1771003296658,1.73926285,2060.9,2060.2,4.467]
[1771003296857,1.73926285,2060.9,2060.3,1.73437417]
[1771003297056,0.00555634,2060.9,2060.3,1.73437417]
[1771003298063,0.00555634,2060.9,2060.5,2.08280146]
[1771003298854,6.34e-06,2060.9,2060.5,2.08280146]
[1771003299155,43.29833605,2061.2,2060.7,2.061019]
[1771003299355,40.8,2061.2,2060.8,2.04895763]
[1771003299558,43.29833605,2061.2,2060.7,6.52195763]
[1771003300155,2.49833605,2061.6,2060.8,2.29175763]
[1771003300556,2.49833605,2061.4,2060.8,2.29175763]
[1771003300959,2.49833605,2061.6,2060.8,2.29175763]
[1771003301160,0.00422417,2061.6,2060.8,2.29175763]
[1771003301361,2.50256022,2061.6,2060.9,4.479]
[1771003301559,2.49833605,2061.5,2060.9,6.53966181]
[1771003301863,2.49833605,2061.5,2061.0,2.06066181]
[1771003302161,2.49833605,2061.5,2061.0,2.06608877]
[1771003302458,40.80422417,2061.6,2061.0,2.06608877]
[1771003302955,0.00422417,2061.6,2061.0,2.06608877]
[1771003303158,2.50256022,2061.6,2061.0,0.00542696]
[1771003303361,2.50256022,2061.6,2061.0,2.03076892]
[1771003303663,0.00422417,2061.6,2061.2,2.02534196]
[1771003304074,2.50256022,2061.6,2061.2,2.02534196]
[1771003304359,2.50256022,2061.6,2061.1,2.26033585]
[1771003304856,0.00422417,2061.6,2061.3,2.01756585]
[1771003305262,0.00422417,2061.6,2061.4,2.25949753]
[1771003305460,2.49833605,2062.0,2061.4,2.25949753]
[1771003306053,2.49833605,2062.0,2061.2,4.486]
[1771003306054,2.49833605,2062.0,2061.0,0.00542696]
[1771003306454,2.49833605,2061.8,2061.0,0.00542696]
[1771003306661,2.49833605,2061.5,2060.3,4.73086]
[1771003306855,2.49833605,2061.5,2060.4,1.96161417]
[1771003307061,2.49833605,2061.5,2060.5,2.20445417]
[1771003307764,2.49833605,2061.5,2060.0,2.19293628]
[1771003307958,2.49833605,2061.2,2060.2,0.24287]
[1771003308161,2.49833605,2061.2,2060.2,2.13724835]
[1771003309061,2.49833605,2061.0,2060.2,2.13724835]
[1771003309462,2.49833605,2061.0,2060.2,0.24857556]
[1771003309773,2.49833605,2061.0,2060.2,0.00570556]
[1771003309962,2.49833605,2061.0,2059.7,0.24292]
[1771003310167,2.49833605,2061.0,2059.7,4.72792]
[1771003310571,2.49833605,2060.9,2059.7,0.24292]
[1771003310869,2.49833605,2060.9,2059.7,2.09240804]
[1771003312068,2.49833605,2060.9,2059.7,0.24765214]
[1771003313167,2.49833605,2060.9,2059.7,0.00473214]
[1771003313366,2.49833605,2060.9,2059.2,6.54352722]
[1771003313673,2.49833605,2060.9,2059.4,2.06424936]
[1771003313867,2.49833605,2060.9,2059.5,1.82127936]
[1771003314069,2.49833605,2060.9,2059.6,2.0659959]
[1771003314274,2.49833605,2060.8,2059.6,2.0659959]
[1771003314471,2.49833605,2060.8,2059.6,0.24486834]
[1771003314674,2.49833605,2060.8,2059.6,2.05717779]
[1771003314874,2.49833605,2060.8,2059.6,0.24486834]
[1771003315475,2.49833605,2060.8,2059.6,0.00192834]
[1771003315774,2.49833605,2060.8,2059.1,6.52817042]
[1771003315976,2.49833605,2060.8,2059.3,2.04615042]
[1771003316876,40.8,2060.7,2059.3,2.04615042]
[1771003317075,2.49833605,2060.6,2059.3,0.24298]
[1771003317290,2.49833605,2060.6,2058.9,1.71411104]
[1771003317768,2.49833605,2060.6,2059.0,1.95712104]
[1771003318872,2.49833605,2060.6,2059.0,0.24301]
[1771003319072,2.49833605,2060.4,2058.8,1.71406739]
[1771003319273,2.50365576,2060.4,2058.8,1.70308389]
[1771003319874,2.50365576,2060.4,2059.2,1.70308389]
[1771003320075,2.49833605,2060.3,2059.2,1.70308389]
[1771003320281,2.49833605,2060.3,2059.3,0.24298]
[1771003320581,2.49833605,2060.3,2058.8,1.93596814]
[1771003320782,2.49833605,2060.3,2059.1,1.68004138]
[1771003321377,2.49833605,2060.3,2059.2,1.92189808]
[1771003322385,2.49833605,2060.3,2059.7,1.58482196]
[1771003322684,0.00531971,2060.4,2059.8,1.82774196]
[1771003322877,2.27399698,2060.8,2059.8,1.82774196]
[1771003323080,2.27399698,2060.8,2059.8,0.24292]
[1771003323281,2.27399698,2060.8,2059.6,1.58457328]
[1771003323983,2.27983267,2060.8,2059.6,1.58989299]
[1771003325078,2.27983267,2060.8,2059.7,0.24296]
[1771003326581,2.27399698,2060.6,2059.6,0.00531971]
[1771003327180,2.27399698,2060.6,2059.6,1.83480984]
[1771003327577,2.27399698,2060.6,2059.6,0.24828971]
[1771003328485,0.00583569,2060.8,2059.6,0.24828971]
[1771003328486,2.27399698,2060.4,2059.6,0.24828971]
[1771003328893,2.27399698,2060.4,2059.6,0.00531971]
[1771003330183,2.27399698,2060.4,2059.1,0.24302]
[1771003330986,2.27399698,2060.4,2059.5,0.24298]
[1771003332486,2.27399698,2060.4,2059.1,1.58144146]
[1771003333290,2.27399698,2060.4,2059.2,1.81398886]
[1771003333889,40.8,2060.3,2059.2,1.81398886]
[1771003334189,2.27399698,2060.2,2059.2,1.81398886]
[1771003338695,2.27399698,2060.2,2059.6,0.24297]
[1771003338894,2.27399698,2060.2,2059.6,1.79510655]
[1771003339492,2.27399698,2060.0,2059.6,0.24297]
[1771003340298,2.27399698,2060.0,2059.6,1.77101214]
[1771003340692,2.27399698,2060.0,2059.6,0.24297]
[1771003340893,2.27399698,2060.0,2059.6,1.77101214]
[1771003341299,2.27399698,2060.3,2059.6,1.77101214]
[1771003341694,40.8,2060.2,2059.6,1.77101214]
[1771003341896,2.27399698,2060.1,2059.6,1.77101214]
[1771003344402,2.27399698,2060.3,2059.6,1.77101214]
[1771003344596,2.27399698,2060.3,2059.6,0.24297]
[1771003344795,2.27399698,2060.1,2059.6,0.24297]
[1771003346394,2.27399698,2060.1,2059.6,1.7600612]
[1771003346600,43.07399698,2060.2,2059.6,1.7600612]
[1771003347305,2.27399698,2060.1,2059.6,1.7600612]
[1771003347692,40.8,2060.2,2059.6,1.7600612]
[1771003348102,2.27399698,2060.3,2059.6,1.7600612]
[1771003348501,43.07399698,2060.3,2059.6,1.7600612]
[1771003349292,2.27399698,2060.5,2060.0,1.73169837]
[1771003349898,2.27399698,2060.5,2059.5,1.73174837]
[1771003350502,2.27399698,2060.5,2059.5,0.24297]
[1771003350702,2.27399698,2060.5,2059.3,1.48932756]
[1771003351097,2.27399698,2060.5,2059.4,1.72117998]
[1771003352704,2.27399698,2060.5,2059.4,0.24297]
[1771003353597,2.16915008,2060.3,2059.2,0.24299]
[1771003353799,2.16915008,2060.3,2059.5,1.70813986]
[1771003355403,2.16915008,2060.6,2059.9,1.45086825]
[1771003355907,42.96915008,2060.5,2059.9,1.45086825]
[1771003356503,2.17498577,2060.8,2060.4,1.43629256]
[1771003356700,2.17498577,2060.8,2060.3,1.67914256]
[1771003357102,2.10263666,2060.7,2060.3,1.67914256]
[1771003358002,2.10263666,2060.7,2060.3,0.24285]
[1771003358403,40.80583569,2060.8,2060.3,1.67254627]
[1771003358606,42.90847235,2060.8,2060.3,1.67254627]
[1771003359405,2.10263666,2060.7,2060.3,1.67254627]
[1771003360998,2.10263666,2060.7,2060.3,0.24285]
[1771003361907,2.10263666,2060.7,2060.0,4.469]
[1771003362111,2.10263666,2060.7,2059.9,0.24291]
[1771003362908,2.10263666,2060.7,2059.4,8.70964516]
[1771003362909,2.10263666,2060.6,2059.4,0.24296]
[1771003365010,2.10263666,2060.4,2059.4,0.24296]
[1771003366812,2.10263666,2060.4,2059.4,1.38057593]
[1771003367112,2.10263666,2060.4,2059.8,0.24292]
[1771003367613,2.10263666,2060.4,2059.8,1.37065781]
[1771003368310,2.10263666,2060.4,2059.8,0.24292]
[1771003368709,2.10263666,2060.4,2059.3,1.3480889]
[1771003368909,2.10263666,2060.4,2059.5,1.3480689]
[1771003370812,2.10263666,2060.4,2059.5,0.24295]
[1771003372213,2.10263666,2060.4,2059.5,1.34623296]
[1771003373208,2.10263666,2060.4,2059.5,5.82423296]